bitfinex-derivatives/quotes_SOLF0:USTF0_20240926
["timestamp","ask_amount","ask_price","bid_price","bid_amount"]
[1727314636033,2.7474,147.27,147.19,23.06002923]
[1727314636541,3.3965,147.23,147.19,23.06002923]
[1727314636734,2.7474,147.27,147.19,19.66272923]
[1727314637030,1.4162,147.28,147.21,16.32]
[1727314637230,16.32,147.27,147.19,3.3974]
[1727314637432,19.0188,147.27,147.19,3.32743614]
[1727314637734,1.3622,147.27,147.21,16.32]
[1727314637934,1.3622,147.27,147.21,19.72899928]
[1727314638137,3.396,147.26,147.21,19.72899928]
[1727314638738,3.396,147.26,147.22,3.3966]
[1727314638938,3.396,147.26,147.21,19.72899928]
[1727314639237,3.396,147.26,147.23,16.32]
[1727314639836,1.4162,147.28,147.19,16.32]
[1727314640032,1.3665,147.27,147.19,19.75130585]
[1727314640233,3.3967,147.23,147.19,23.14870585]
[1727314641136,1.3665,147.27,147.19,23.14870585]
[1727314641137,1.3665,147.27,147.19,16.32]
[1727314641340,16.32,147.26,147.17,3.47728701]
[1727314641738,3.3971,147.21,147.17,6.87518701]
[1727314642435,3.3972,147.2,147.17,3.47728701]
[1727314643438,1.3665,147.27,147.18,16.32]
[1727314643644,1.3665,147.27,147.2,16.32]
[1727314644240,3.3962,147.25,147.2,19.717]
[1727314644432,1.3665,147.27,147.2,16.32]
[1727314644636,3.3962,147.25,147.21,3.3969]
[1727314644835,2.7528,147.28,147.22,16.32]
[1727314644836,1.4162,147.28,147.22,16.32]
[1727314645337,1.3992,147.34,147.24,16.32]
[1727314645542,1.4163,147.33,147.24,16.32]
[1727314646240,16.32,147.31,147.22,16.32]
[1727314646644,3.396,147.26,147.22,19.7167]
[1727314646845,16.32,147.29,147.2,97.88]
[1727314647139,16.32,147.29,147.2,101.29057478]
[1727314647340,16.32,147.29,147.2,104.68777478]
[1727314648144,3.3964,147.24,147.2,104.68777478]
[1727314648345,16.32,147.29,147.2,97.88]
[1727314648650,3.3968,147.22,147.2,81.56]
[1727314648941,16.32,147.27,147.2,81.56]
[1727314649146,1.2875,147.28,147.2,97.88]
[1727314649452,17.6075,147.28,147.2,81.56]
[1727314649642,1.3834,147.27,147.2,81.56]
[1727314649842,3.3966,147.23,147.2,16.32]
[1727314650843,3.3966,147.23,147.2,19.7171]
[1727314651050,3.3966,147.23,147.2,16.32]
[1727314652644,3.3963,147.24,147.2,19.7171]
[1727314653642,1.3834,147.27,147.19,16.32]
[1727314653843,2.7821,147.27,147.19,16.32]
[1727314654044,16.32,147.26,147.17,85.00308977]
[1727314654244,3.3974,147.2,147.17,85.00308977]
[1727314654437,3.3974,147.2,147.17,3.44308977]
[1727314655449,3.3975,147.19,147.17,3.44308977]
[1727314655645,16.32,147.26,147.18,16.32]
[1727314655846,3.3968,147.22,147.18,19.72061202]
[1727314656047,2.7821,147.27,147.2,16.32]
[1727314656550,1.3834,147.27,147.22,16.32]
[1727314656751,1.3834,147.27,147.23,16.32]
[1727314656973,1.3834,147.27,147.22,16.32]
[1727314657249,1.3834,147.27,147.2,16.32]
[1727314657645,3.397,147.21,147.2,16.32]
[1727314657853,17.7034,147.27,147.18,16.32]
[1727314658047,3.3974,147.2,147.18,16.32]
[1727314658449,17.7034,147.27,147.18,16.32]
[1727314658649,1.3834,147.27,147.2,16.32]
[1727314659555,3.3963,147.24,147.22,16.32]
[1727314659857,1.3834,147.27,147.22,16.32]
[1727314660850,3.3963,147.24,147.22,16.32]
[1727314661154,1.3834,147.27,147.22,16.32]
[1727314661354,3.3962,147.25,147.22,16.32]
[1727314661956,3.3963,147.24,147.22,16.32]
[1727314662156,1.3834,147.27,147.22,19.7167]
[1727314662346,1.3523,147.29,147.24,16.32]
[1727314662755,3.396,147.26,147.24,16.32]
[1727314662957,1.3523,147.29,147.24,16.32]
[1727314663256,1.3523,147.29,147.22,16.32]
[1727314663454,2.6844,147.28,147.2,19.7171]
[1727314663851,3.3964,147.24,147.2,23.04792842]
[1727314664257,2.6844,147.28,147.2,16.32]
[1727314664454,3.3967,147.23,147.2,16.32]
[1727314665153,3.397,147.21,147.2,16.32]
[1727314665659,3.3968,147.22,147.2,16.32]
[1727314666148,16.32,147.27,147.18,97.88]
[1727314668457,16.32,147.25,147.18,81.56]
[1727314668755,16.32,147.25,147.14,19.7184]
[1727314669460,3.3978,147.18,147.14,19.7184]
[1727314669953,19.0044,147.28,147.14,19.7184]
[1727314669954,16.32,147.23,147.14,16.32]
[1727314670161,2.6459,147.22,147.14,16.32]
[1727314670357,4.0519,147.22,147.14,16.32]
[1727314670657,3.3982,147.16,147.14,16.32]
[1727314670957,16.32,147.21,147.13,97.88]
[1727314671353,16.32,147.21,147.13,81.56]
[1727314672362,4.0519,147.22,147.13,97.88]
[1727314672857,3.398,147.17,147.13,97.88]
[1727314673260,3.3984,147.15,147.13,97.88]
[1727314673558,4.0519,147.22,147.13,97.88]
[1727314674462,1.4154,147.27,147.18,16.32]
[1727314674656,17.7354,147.27,147.18,16.32]
[1727314674961,3.3974,147.2,147.18,16.32]
[1727314675158,3.3974,147.2,147.16,19.718]
[1727314675458,16.32,147.25,147.16,16.32]
[1727314675652,16.32,147.21,147.13,81.56]
[1727314675850,2.8327,147.2,147.13,81.56]
[1727314676154,3.3983,147.16,147.13,81.56]
[1727314678162,3.3983,147.16,147.12,3.399]
[1727314678359,16.32,147.19,147.1,3.3993]
[1727314678560,16.32,147.17,147.09,84.99230328]
[1727314678756,16.32,147.17,147.09,81.58]
[1727314678956,16.32,147.19,147.1,3.47339101]
[1727314679160,16.32,147.19,147.09,97.9]
[1727314679358,16.32,147.19,147.1,16.32]
[1727314679960,3.3987,147.14,147.1,6.75642403]
[1727314680168,16.32,147.19,147.09,81.58]
[1727314680369,4.1275,147.2,147.09,81.58]
[1727314680867,16.32,147.17,147.09,81.58]
[1727314681264,16.32,147.15,147.09,81.58]
[1727314681569,20.3178,147.14,147.09,81.58]
[1727314682467,3.9978,147.14,147.09,81.58]
[1727314683168,3.399,147.13,147.09,81.58]
[1727314683368,3.9978,147.14,147.09,81.58]
[1727314683770,20.3178,147.14,147.09,81.58]
[1727314684165,3.9978,147.14,147.09,81.58]
[1727314684366,3.3995,147.1,147.09,81.58]
[1727314684665,16.32,147.12,147.04,16.32]
[1727314685562,16.32,147.12,147.05,3.4006]
[1727314685759,16.32,147.12,147.04,16.32]
[1727314686267,3.9978,147.14,147.08,16.32]
[1727314686773,3.3993,147.11,147.08,16.32]
[1727314687371,3.9978,147.14,147.08,16.32]
[1727314687565,3.9978,147.14,147.08,19.72]
[1727314688066,3.399,147.13,147.08,19.72]
[1727314688262,1.3112,147.14,147.09,3.3996]
[1727314688464,1.3233,147.17,147.09,3.3996]
[1727314688772,3.3988,147.14,147.09,3.3996]
[1727314689870,1.3233,147.17,147.06,2.6769]
[1727314689871,1.3233,147.17,147.1,26.13]
[1727314690070,2.8032,147.19,147.1,26.13]
[1727314690274,2.8032,147.19,147.11,3.32833147]
[1727314690476,1.4178,147.19,147.11,3.32833147]
[1727314690970,3.3977,147.18,147.13,26.13]
[1727314691563,3.3979,147.17,147.13,26.13]
[1727314692269,2.6899,147.23,147.13,26.13]
[1727314692270,3.3982,147.16,147.13,26.13]
[1727314692469,3.3982,147.16,147.11,29.54505991]
[1727314692667,28.8199,147.23,147.11,29.5292]
[1727314693271,28.8199,147.23,147.11,32.95308216]
[1727314693465,3.3983,147.16,147.11,32.95308216]
[1727314694071,3.3983,147.16,147.12,3.399]
[1727314694267,28.8199,147.23,147.11,26.13]
[1727314694472,26.13,147.2,147.09,3.3996]
[1727314695272,26.13,147.18,147.06,2.6769]
[1727314695579,2.718,147.17,147.06,2.6769]
[1727314695870,4.0564,147.17,147.05,81.62]
[1727314696272,3.3999,147.09,147.05,81.62]
[1727314696479,26.13,147.15,147.05,81.62]
[1727314696869,3.3999,147.09,147.05,81.62]
[1727314697073,3.34250928,147.13,147.05,81.62]
[1727314697287,26.13,147.15,147.05,81.62]
[1727314697484,3.4001,147.08,147.05,81.62]
[1727314697876,3.3998,147.09,147.05,81.62]
[1727314698075,26.13,147.15,147.05,81.62]
[1727314698780,3.4001,147.08,147.05,81.62]
[1727314700080,26.13,147.15,147.05,85.0205]
[1727314700595,3.3999,147.09,147.05,85.0205]
[1727314701181,26.13,147.15,147.06,3.4004]
[1727314701382,4.0564,147.17,147.05,81.62]
[1727314701679,4.0564,147.17,147.07,26.13]
[1727314702383,3.3988,147.13,147.09,3.3997]
[1727314702578,4.0564,147.17,147.07,26.13]
[1727314703578,30.1864,147.17,147.07,26.13]
[1727314703983,3.3997,147.1,147.06,3.4004]
[1727314704183,3.3997,147.1,147.05,107.75]
[1727314704184,30.1864,147.17,147.05,107.75]
[1727314704384,3.3997,147.1,147.06,3.4004]
[1727314704687,30.1864,147.17,147.06,3.4004]
[1727314705284,30.1864,147.17,147.07,3.4001]
[1727314706185,3.3995,147.11,147.07,3.4001]
[1727314706688,30.1864,147.17,147.06,3.4004]
[1727314706984,4.0564,147.17,147.05,107.75]
[1727314707182,26.13,147.16,147.05,107.75]
[1727314707380,3.3997,147.1,147.05,111.1505]
[1727314707578,3.3997,147.1,147.05,26.13]
[1727314707777,3.3998,147.09,147.05,26.13]
[1727314708285,3.4002,147.08,147.04,3.4008]
[1727314708675,4.0564,147.17,147.02,84.2288]
[1727314708879,1.3684,147.1,147.03,16.33]
[1727314709587,3.4004,147.07,147.03,19.7311]
[1727314709982,1.3684,147.1,147.03,16.33]
[1727314710379,1.3684,147.1,147.02,87.63]
[1727314710584,3.401,147.04,147.02,84.2288]
[1727314711191,1.3684,147.1,147.02,84.2288]
[1727314711789,1.3684,147.1,147.03,3.4011]
[1727314712185,1.3684,147.1,147.02,110.3488]
[1727314712393,3.4001,147.08,147.03,3.38492244]
[1727314712687,26.12,147.14,147.02,110.3488]
[1727314713293,3.3999,147.09,147.02,110.3488]
[1727314713586,26.12,147.14,147.02,110.3488]
[1727314713992,3.3999,147.09,147.02,110.3488]
[1727314714191,2.6549,147.16,147.07,26.12]
[1727314714397,1.3076,147.16,147.1,26.12]
[1727314714587,1.3076,147.16,147.07,29.49607742]
[1727314714791,1.3076,147.16,147.07,26.12]
[1727314715492,1.3076,147.16,147.05,26.12]
[1727314715695,1.3076,147.16,147.05,29.525768]
[1727314716299,1.3076,147.16,147.05,32.926268]
[1727314716701,1.3076,147.16,147.05,3.405768]
[1727314717000,3.3992,147.12,147.07,29.52]
[1727314717296,1.3076,147.16,147.07,29.52]
[1727314717489,1.3076,147.16,147.07,26.12]
[1727314718092,3.399,147.13,147.09,3.3996]
[1727314718398,1.3076,147.16,147.07,26.12]
[1727314718792,1.3076,147.16,147.07,29.52]
[1727314719293,1.3076,147.16,147.07,26.12]
[1727314719690,2.6692,147.2,147.1,26.12]
[1727314720100,2.6692,147.2,147.11,3.3991]
[1727314720296,2.6692,147.2,147.1,26.12]
[1727314720504,2.6692,147.2,147.12,3.399]
[1727314720699,2.6692,147.2,147.11,3.34465682]
[1727314722805,3.3985,147.15,147.11,6.74385682]
[1727314723008,2.6692,147.2,147.12,26.12]
[1727314723504,3.398,147.17,147.13,3.3988]
[1727314723705,26.12,147.23,147.12,29.60169164]
[1727314724299,3.398,147.17,147.12,33.00049164]
[1727314724498,26.12,147.23,147.12,33.00049164]
[1727314724905,26.12,147.23,147.12,29.60169164]
[1727314725105,2.6598,147.24,147.14,26.12]
[1727314725302,2.6598,147.24,147.16,26.12]
[1727314725608,1.296,147.24,147.16,26.12]
[1727314725806,3.3972,147.21,147.16,29.518]
[1727314726002,3.3972,147.21,147.16,32.93370679]
[1727314726304,3.3972,147.21,147.17,3.3977]
[1727314726504,28.8319,147.28,147.08,87.59633065]
[1727314726705,26.12,147.21,147.08,113.71633065]
[1727314726897,1.4,147.2,147.08,113.71633065]
[1727314727103,3.3992,147.12,147.08,113.71633065]
[1727314727410,26.12,147.18,147.08,87.59633065]
[1727314727809,3.3991,147.12,147.08,87.59633065]
[1727314728008,26.12,147.18,147.08,84.2289]
[1727314728406,3.3993,147.11,147.08,84.2289]
[1727314728809,3.3996,147.1,147.08,84.2289]
[1727314729106,26.12,147.18,147.08,84.2289]
[1727314729511,3.3993,147.12,147.08,84.2289]
[1727314729712,26.12,147.18,147.08,84.2289]
[1727314730106,3.3995,147.1,147.08,81.62]
[1727314730706,3.3993,147.11,147.08,81.62]
[1727314730907,26.12,147.18,147.08,81.62]
[1727314731213,3.3992,147.12,147.08,81.62]
[1727314731815,4.0828,147.2,147.08,107.74]
[1727314732815,3.399,147.13,147.08,107.74]
[1727314733414,3.399,147.13,147.09,3.3997]
[1727314735116,3.3986,147.14,147.1,3.3995]
[1727314736010,3.3989,147.13,147.09,6.1121]
[1727314736407,21.2147878,147.2,147.09,2.7124]
[1727314736613,17.76755069,147.2,147.09,2.7124]
[1727314738017,3.3991,147.12,147.09,2.7124]
[1727314738418,3.3991,147.12,147.09,6.1121]
[1727314738918,3.3989,147.13,147.09,6.1121]
[1727314739122,17.76755069,147.2,147.11,29.5191]
[1727314739414,1.4,147.2,147.13,26.12]
[1727314739615,1.4,147.2,147.14,3.35440391]
[1727314740012,1.4,147.2,147.13,29.5187]
[1727314740210,1.4,147.2,147.13,26.12]
[1727314740514,1.3038,147.24,147.15,26.12]
[1727314740712,3.3976,147.19,147.16,3.3981]
[1727314740912,1.3723,147.24,147.17,26.12]
[1727314741822,3.3974,147.2,147.17,26.12]
[1727314742023,3.3974,147.2,147.16,3.3981]
[1727314742218,1.3723,147.24,147.15,84.3013]
[1727314742820,1.3723,147.24,147.15,87.6995]
[1727314742821,3.3975,147.19,147.15,87.6995]
[1727314743426,1.3723,147.24,147.15,87.6995]
[1727314744920,1.3723,147.24,147.15,81.6]
[1727314747627,3.3978,147.18,147.15,81.6]
[1727314747826,1.3723,147.24,147.15,81.6]
[1727314748027,15.05586024,147.24,147.15,81.6]
[1727314748226,3.3978,147.18,147.15,81.6]
[1727314748420,3.3978,147.18,147.15,101.3183]
[1727314750024,17.6923,147.24,147.16,3.3981]
[1727314750221,17.6923,147.24,147.19,16.32]
[1727314750222,1.3723,147.24,147.19,16.32]
[1727314750422,19.0283,147.28,147.19,16.32]
[1727314750423,13.67694154,147.23,147.19,16.32]
[1727314750619,25.13425693,147.27,147.19,16.32]
[1727314750823,25.13425693,147.27,147.15,81.6]
[1727314750824,25.13425693,147.27,147.21,16.32]
[1727314751125,16.32,147.34,147.23,16.32]
[1727314751426,16.32,147.32,147.23,16.32]
[1727314751625,25.13110027,147.31,147.23,16.32]
[1727314752129,3.3959,147.26,147.23,16.32]
[1727314752327,2.6214,147.34,147.25,16.32]
[1727314752521,18.9414,147.34,147.25,16.32]
[1727314752726,25.12339656,147.33,147.25,16.32]
[1727314753426,25.12339656,147.33,147.27,16.32]
[1727314753622,3.3953,147.29,147.27,16.32]
[1727314753829,18.9414,147.34,147.25,16.32]
[1727314754329,3.3958,147.27,147.23,26.08]
[1727314755022,2.6214,147.34,147.23,26.08]
[1727314755220,26.08,147.32,147.22,81.58]
[1727314757328,26.08,147.32,147.22,85.0343655]
[1727314757524,28.7014,147.34,147.22,111.1143655]
[1727314757927,3.3957,147.27,147.22,114.5108655]
[1727314758128,2.6214,147.34,147.25,26.08]
[1727314758626,3.3952,147.29,147.25,29.4759]
[1727314761128,2.6214,147.34,147.25,26.08]
[1727314761730,3.38540728,147.38,147.29,26.08]
[1727314762029,30.0498,147.42,147.29,26.08]
[1727314763231,3.9698,147.42,147.34,26.08]
[1727314767335,1.3186,147.42,147.36,26.08]
[1727314767530,3.43347165,147.48,147.36,26.08]
[1727314767531,2.7081,147.47,147.36,26.08]
[1727314767836,4.1215,147.47,147.37,3.3462224]
[1727314768341,3.3924,147.41,147.37,3.3462224]
[1727314768542,4.1215,147.47,147.39,26.08]
[1727314768741,3.3921,147.43,147.39,26.08]
[1727314769440,3.3921,147.43,147.39,29.44217942]
[1727314769644,3.3915,147.45,147.41,3.3923]
[1727314769832,3.3915,147.45,147.39,29.44217942]
[1727314770034,1.3966,147.47,147.39,29.44217942]
[1727314770251,3.3922,147.42,147.39,29.44217942]
[1727314771635,3.3924,147.41,147.39,29.44217942]
[1727314771841,1.3966,147.47,147.39,29.44217942]
[1727314772336,1.3476,147.49,147.41,26.08]
[1727314772533,1.3476,147.49,147.44,26.08]
[1727314773143,1.3476,147.49,147.42,26.08]
[1727314773344,3.3917,147.45,147.42,26.08]
[1727314773543,1.3476,147.49,147.42,26.08]
[1727314774339,1.3476,147.49,147.42,16.28]
[1727314774538,1.3476,147.49,147.44,16.28]
[1727314775738,3.3911,147.47,147.44,16.28]
[1727314775938,17.6893,147.53,147.44,16.28]
[1727314776143,3.3914,147.45,147.42,16.28]
[1727314776343,1.2946,147.52,147.44,16.28]
[1727314777250,3.3914,147.45,147.44,16.28]
[1727314777435,16.28,147.51,147.42,16.28]
[1727314777637,16.28,147.51,147.42,19.65607368]
[1727314777842,3.3916,147.45,147.42,19.65607368]
[1727314779652,3.3912,147.47,147.44,16.28]
[1727314779950,3.3912,147.47,147.46,16.28]
[1727314781847,1.2946,147.52,147.46,16.28]
[1727314782044,1.2946,147.52,147.48,16.28]
[1727314782849,3.3907,147.49,147.48,16.28]
[1727314786339,3.3907,147.49,147.44,3.45906644]
[1727314786340,3.3913,147.46,147.45,16.28]
[1727314787350,1.2946,147.52,147.43,97.72]
[1727314787847,3.3916,147.45,147.43,97.72]
[1727314789047,3.3917,147.44,147.43,97.72]
[1727314791052,3.3917,147.44,147.43,16.28]
[1727314791953,1.2946,147.52,147.43,16.28]
[1727314792147,1.2946,147.52,147.47,16.28]
[1727314793148,3.3907,147.48,147.42,3.39166992]
[1727314793349,3.3907,147.48,147.4,99.003]
[1727314793551,3.391,147.47,147.43,3.3919]
[1727314793749,3.391,147.47,147.46,16.28]
[1727314796444,3.3917,147.45,147.44,16.28]
[1727314797652,3.3919,147.43,147.42,97.7]
[1727314798452,3.3919,147.43,147.42,81.42]
[1727314800454,3.3921,147.42,147.41,16.28]
[1727314800649,16.28,147.5,147.41,16.28]
[1727314800848,16.28,147.5,147.39,3.45684673]
[1727314800849,1.2946,147.52,147.46,16.28]
[1727314801056,1.2946,147.52,147.48,16.28]
[1727314801558,3.3905,147.49,147.48,16.28]
[1727314804361,3.3904,147.5,147.48,16.28]
[1727314804558,3.3904,147.5,147.4,17.6438]
[1727314804559,3.3904,147.5,147.49,16.28]
[1727314805361,3.3907,147.48,147.47,16.28]
[1727314807054,1.4093,147.53,147.46,16.28]
[1727314807461,17.6893,147.53,147.46,16.28]
[1727314807762,21.10234171,147.53,147.46,16.28]
[1727314807964,3.391,147.47,147.46,16.28]
[1727314808362,1.4093,147.53,147.46,16.28]
[1727314808656,3.3902,147.51,147.5,16.28]
[1727314809559,1.4093,147.53,147.5,16.28]
[1727314809861,1.2842,147.54,147.47,16.28]
[1727314809862,1.3136,147.57,147.52,16.28]
[1727314810558,3.3896,147.53,147.52,16.28]
[1727314811356,1.3136,147.57,147.5,16.28]
[1727314811862,3.3901,147.51,147.5,16.28]
[1727314812260,1.3136,147.57,147.5,16.28]
[1727314812956,3.3901,147.51,147.5,16.28]
[1727314813356,3.3907,147.49,147.48,16.28]
[1727314813574,16.28,147.56,147.46,16.28]
[1727314813863,16.28,147.56,147.44,81.42]
[1727314813864,2.7567,147.55,147.48,16.28]
[1727314814068,2.7567,147.55,147.5,16.28]
[1727314814261,1.3505,147.55,147.52,16.28]
[1727314815864,3.3896,147.53,147.52,16.28]
[1727314819970,3.3901,147.51,147.5,16.28]
[1727314820966,3.3905,147.49,147.48,16.28]
[1727314822567,1.2935,147.54,147.48,16.28]
[1727314823171,3.3905,147.49,147.48,16.28]
[1727314823472,1.2935,147.54,147.48,16.28]
[1727314823868,3.3905,147.49,147.48,16.28]
[1727314824064,1.2935,147.54,147.48,16.28]
[1727314824367,1.2935,147.54,147.47,19.70445035]
[1727314824368,1.3136,147.57,147.53,16.28]
[1727314824568,1.3136,147.57,147.55,16.28]
[1727314824768,3.3889,147.56,147.55,16.28]
[1727314824965,1.4039,147.59,147.55,16.28]
[1727314825176,1.3734,147.61,147.58,16.28]
[1727314825177,2.7482,147.61,147.58,16.28]
[1727314825577,2.7482,147.61,147.56,16.28]
[1727314826178,3.3887,147.57,147.56,16.28]
[1727314827474,2.7482,147.61,147.55,16.28]
[1727314827678,1.3133,147.6,147.55,16.28]
[1727314827873,1.3133,147.6,147.57,16.28]
[1727314828275,3.3886,147.58,147.54,16.28]
[1727314828483,1.3748,147.61,147.57,16.28]
[1727314828781,4.65886614,147.65,147.6,16.28]
[1727314828971,1.3281,147.64,147.6,16.28]
[1727314829177,3.3878,147.61,147.6,16.28]
[1727314831278,3.3882,147.59,147.58,16.28]
[1727314834876,1.3281,147.64,147.58,16.28]
[1727314835077,1.3281,147.64,147.61,16.28]
[1727314835279,1.3281,147.64,147.59,16.28]
[1727314835480,3.388,147.6,147.59,16.28]
[1727314836588,16.28,147.72,147.59,16.28]
[1727314836785,7.49297626,147.7,147.65,16.28]
[1727314836989,3.3868,147.66,147.65,16.28]
[1727314837792,3.3865,147.67,147.65,16.28]
[1727314838392,2.7214,147.7,147.65,16.28]
[1727314839096,26.38304877,147.74,147.69,16.28]
[1727314839097,13.60884106,147.73,147.69,16.28]
[1727314839299,1.3819,147.74,147.71,16.28]
[1727314839902,1.4053,147.75,147.71,16.28]
[1727314840397,3.3852,147.72,147.71,16.28]
[1727314842401,3.3856,147.71,147.69,16.28]
[1727314842702,1.4053,147.75,147.69,16.28]
[1727314843209,1.4053,147.75,147.71,16.28]
[1727314844700,3.3852,147.73,147.71,16.28]
[1727314845299,3.3852,147.72,147.71,16.28]
[1727314845905,3.3858,147.7,147.69,16.28]
[1727314846531,1.4053,147.75,147.67,16.28]
[1727314846532,3.3861,147.69,147.67,16.28]
[1727314846710,1.4053,147.75,147.67,16.28]
[1727314847005,1.4053,147.75,147.7,16.28]
[1727314847405,3.3856,147.71,147.7,16.28]
[1727314849108,3.3859,147.69,147.68,16.28]
[1727314850708,3.3858,147.7,147.68,16.28]
[1727314850904,1.4053,147.75,147.68,16.28]
[1727314851314,1.4053,147.75,147.7,16.28]
[1727314851813,3.3854,147.72,147.71,16.28]
[1727314852006,1.4053,147.75,147.71,16.28]
[1727314852204,1.4053,147.75,147.73,16.28]
[1727314852604,1.4053,147.75,147.71,16.28]
[1727314855407,2.6649,147.78,147.73,16.28]
[1727314855615,1.362,147.81,147.76,16.28]
[1727314856114,3.3841,147.77,147.76,16.28]
[1727314856415,1.362,147.81,147.76,16.28]
[1727314856607,1.362,147.81,147.77,16.28]
[1727314856808,3.3839,147.78,147.77,16.28]
[1727314857314,3.3843,147.76,147.75,16.28]
[1727314858408,3.3847,147.75,147.74,16.28]
[1727314858816,3.3843,147.76,147.74,16.28]
[1727314859107,1.362,147.81,147.74,16.28]
[1727314859610,1.362,147.81,147.7,4.6659]
[1727314859611,1.362,147.81,147.76,16.28]
[1727314860609,3.384,147.78,147.76,16.28]
[1727314861718,1.362,147.81,147.76,16.28]
[1727314861719,3.3841,147.77,147.76,16.28]
[1727314867022,1.3221,147.83,147.76,16.28]
[1727314867319,3.3836,147.8,147.78,16.28]
[1727314867513,1.3221,147.83,147.78,16.28]
[1727314868917,16.28,147.82,147.72,81.28]
[1727314869117,16.28,147.82,147.74,16.28]
[1727314869317,1.3221,147.83,147.78,16.28]
[1727314869716,1.3221,147.83,147.8,16.28]
[1727314870027,1.3467,147.85,147.8,16.28]
[1727314870818,3.3834,147.81,147.8,16.28]
[1727314872125,3.3836,147.79,147.78,16.28]
[1727314875020,3.3841,147.77,147.76,16.28]
[1727314875822,1.3467,147.85,147.72,81.28]
[1727314875823,16.28,147.81,147.72,97.56]
[1727314876018,2.6406,147.8,147.72,97.56]
[1727314876420,2.6406,147.8,147.74,16.28]
[1727314877225,3.3843,147.77,147.76,16.28]
[1727314878127,3.3846,147.75,147.74,16.28]
[1727314878329,2.709,147.84,147.74,16.28]
[1727314878527,2.709,147.84,147.78,16.28]
[1727314879029,3.3838,147.79,147.78,16.28]
[1727314879220,2.709,147.84,147.78,16.28]
[1727314879423,2.709,147.84,147.8,16.28]
[1727314880029,2.709,147.84,147.78,16.28]
[1727314881931,3.3836,147.79,147.78,16.28]
[1727314884333,3.3835,147.8,147.78,16.28]
[1727314885425,3.3836,147.79,147.78,16.28]
[1727314885632,2.709,147.84,147.78,16.28]
[1727314886133,3.3835,147.8,147.78,16.28]
[1727314886627,1.3467,147.85,147.78,16.28]
[1727314886827,1.3467,147.85,147.8,16.28]
[1727314887226,2.7711,147.9,147.82,16.28]
[1727314887427,1.295,147.89,147.82,16.28]
[1727314887624,3.3827,147.84,147.82,16.28]
[1727314888434,3.3827,147.83,147.82,16.28]
[1727314888931,3.3831,147.82,147.8,16.28]
[1727314889736,3.3832,147.81,147.8,16.28]
[1727314889933,16.28,147.87,147.78,16.28]
[1727314890334,3.3836,147.8,147.78,16.28]
[1727314890635,16.28,147.87,147.78,16.28]
[1727314890838,21.03165105,147.89,147.8,16.28]
[1727314891034,1.295,147.89,147.82,16.28]